bitfinex-derivatives/quotes_ETHF0:USTF0_20250404
["timestamp","ask_amount","ask_price","bid_price","bid_amount"]
[1743797465361,9.66620001,1811.3,1811.2,1.64896565]
[1743797466059,9.66620001,1811.3,1811.2,2.43915225]
[1743797466763,9.66620001,1811.3,1811.2,1.64896565]
[1743797467367,9.66620001,1811.3,1811.2,2.43927972]
[1743797467562,4.4456,1811.3,1811.2,2.43927972]
[1743797467764,3.739,1811.3,1811.2,2.43927972]
[1743797467963,4.29180001,1811.3,1811.2,2.43927972]
[1743797468265,6.9468,1811.3,1811.2,2.43927972]
[1743797468766,6.9468,1811.3,1811.2,2.43938272]
[1743797469273,3.739,1811.3,1811.2,2.43938272]
[1743797469473,3.739,1811.3,1811.2,3.15312284]
[1743797469767,3.739,1811.3,1811.2,2.43938272]
[1743797470666,3.739,1811.3,1811.2,2.43944127]
[1743797471168,3.739,1811.3,1811.2,3.15322074]
[1743797472467,8.05139,1811.3,1811.2,3.15334397]
[1743797472766,9.57649,1811.3,1811.2,3.15334397]
[1743797472972,9.57649,1811.3,1811.2,2.4395645]
[1743797473375,8.4719,1811.3,1811.2,2.4395645]
[1743797474166,4.7329,1811.3,1811.2,2.4395645]
[1743797474367,5.2621,1811.3,1811.2,2.43958832]
[1743797474572,9.57449,1811.3,1811.2,2.43958832]
[1743797474772,8.4699,1811.3,1811.2,2.43958832]
[1743797475572,8.4699,1811.3,1811.2,1.89513687]
[1743797475766,8.4699,1811.3,1811.2,2.43965216]
[1743797476463,8.4699,1811.3,1811.2,3.15347825]
[1743797476665,8.4699,1811.3,1811.2,2.43965216]
[1743797477167,8.4699,1811.3,1811.2,2.43966219]
[1743797477868,9.02270001,1811.3,1811.2,2.43966219]
[1743797478069,9.02270001,1811.3,1811.2,2.43969469]
[1743797478467,8.4699,1811.3,1811.2,2.43969469]
[1743797479069,9.02270001,1811.3,1811.2,2.43969469]
[1743797479259,8.4699,1811.3,1811.2,2.43969469]
[1743797479464,9.02270001,1811.3,1811.2,2.43969469]
[1743797479661,8.4699,1811.3,1811.2,2.43969469]
[1743797479867,9.02270001,1811.3,1811.2,2.43969469]
[1743797480067,8.4699,1811.3,1811.2,2.43974778]
[1743797480269,9.02270001,1811.3,1811.2,2.43974778]
[1743797480468,8.4699,1811.3,1811.2,2.43974778]
[1743797481070,9.02270001,1811.3,1811.2,2.43974778]
[1743797481272,8.4699,1811.3,1811.2,2.43974778]
[1743797481674,5.81490001,1811.3,1811.2,2.43974778]
[1743797481868,5.2621,1811.3,1811.2,2.43989839]
[1743797483268,5.81490001,1811.3,1811.2,2.43989839]
[1743797483479,8.4699,1811.3,1811.2,2.43989839]
[1743797483774,9.02270001,1811.3,1811.2,2.43989839]
[1743797484177,8.4699,1811.3,1811.2,2.43989839]
[1743797484379,9.02270001,1811.3,1811.2,2.43989839]
[1743797484577,8.4699,1811.3,1811.2,2.43989839]
[1743797485778,8.4699,1811.3,1811.2,2.43998546]
[1743797486181,9.02270001,1811.3,1811.2,2.43998546]
[1743797486478,9.02270001,1811.3,1811.2,0.5446395]
[1743797486479,10.12729001,1811.3,1811.2,0.5446395]
[1743797486874,10.12729001,1811.3,1811.2,1.6492895]
[1743797487075,9.02270001,1811.3,1811.2,1.6492895]
[1743797487272,5.81490001,1811.3,1811.2,2.44001196]
[1743797487576,9.02270001,1811.3,1811.2,2.439995]
[1743797487778,8.4699,1811.3,1811.2,2.439995]
[1743797488079,8.4699,1811.3,1811.2,2.43995567]
[1743797488381,8.4699,1811.3,1811.2,2.43990869]
[1743797488673,5.2621,1811.3,1811.2,1.89531377]
[1743797488879,5.81490001,1811.3,1811.2,2.43994569]
[1743797489177,8.4699,1811.3,1811.2,1.64929394]
[1743797489576,8.4699,1811.3,1811.2,2.43999082]
[1743797489878,9.02270001,1811.3,1811.2,2.43999944]
[1743797490077,9.02270001,1811.3,1811.2,1.89535783]
[1743797490276,8.4699,1811.3,1811.2,2.43999988]
[1743797490475,9.02270001,1811.3,1811.2,2.43999302]
[1743797490783,8.4699,1811.3,1811.2,2.43999004]
[1743797491072,8.4699,1811.3,1811.2,1.10465]
[1743797491277,8.4699,1811.3,1811.2,2.44002038]
[1743797491474,5.2621,1811.3,1811.2,2.4400844]
[1743797491678,5.2621,1811.3,1811.2,1.89543402]
[1743797491878,5.81490001,1811.3,1811.2,2.44012662]
[1743797492177,5.2621,1811.3,1811.2,2.44012312]
[1743797492379,5.81490001,1811.3,1811.2,2.44015809]
[1743797492581,5.2621,1811.3,1811.2,2.44015809]
[1743797492879,9.02270001,1811.3,1811.2,2.44015809]
[1743797493083,8.4699,1811.3,1811.2,2.44015809]
[1743797493882,9.02270001,1811.3,1811.2,2.44015809]
[1743797494088,8.4699,1811.3,1811.2,2.44015809]
[1743797494385,4.7329,1811.3,1811.2,2.44015809]
[1743797494683,10.12529001,1811.3,1811.2,1.6493426]
[1743797494984,9.02070001,1811.3,1811.2,1.6493426]
[1743797495379,10.12529001,1811.3,1811.2,1.6493426]
[1743797495573,9.02070001,1811.3,1811.2,1.6493426]
[1743797496082,8.4679,1811.3,1811.2,1.6493426]
[1743797496688,9.02070001,1811.3,1811.2,1.6493426]
[1743797498985,9.02070001,1811.3,1811.2,2.44022072]
[1743797499187,9.02070001,1811.3,1811.2,1.6493426]
[1743797499686,9.02070001,1811.3,1811.2,1.64941461]
[1743797500490,9.02070001,1811.3,1811.2,2.44030203]
[1743797500987,9.02070001,1811.3,1811.2,1.64941461]
[1743797501586,9.02070001,1811.3,1811.2,0.54476461]
[1743797501887,9.02070001,1811.3,1811.2,1.64941461]
[1743797502690,10.12529001,1811.3,1811.2,1.64941461]
[1743797502891,9.02070001,1811.3,1811.2,1.64941461]
[1743797503096,9.02070001,1811.3,1811.2,2.44029854]
[1743797503293,9.02070001,1811.3,1811.2,2.44026588]
[1743797503789,9.02070001,1811.3,1811.2,1.64940445]
[1743797503992,9.02070001,1811.3,1811.2,2.44029033]
[1743797504385,9.02070001,1811.3,1811.2,3.86359033]
[1743797504693,9.02070001,1811.3,1811.2,3.07270445]
[1743797504895,9.02070001,1811.3,1811.2,3.07274204]
[1743797505280,9.02070001,1811.3,1811.2,3.07273171]
[1743797505480,9.02070001,1811.3,1811.2,3.86362601]
[1743797505990,9.02070001,1811.3,1811.2,3.07273171]
[1743797506294,9.02070001,1811.3,1811.2,3.8636511]
[1743797507295,9.02070001,1811.3,1811.2,3.86364636]
[1743797508389,9.02070001,1811.3,1811.2,3.86367153]
[1743797509088,5.81290001,1811.3,1811.2,3.86367153]
[1743797509294,9.02070001,1811.3,1811.2,3.07273171]
[1743797509490,5.28570001,1811.3,1811.2,3.86368126]
[1743797509799,4.28680001,1811.3,1811.2,4.58068126]
[1743797510294,3.734,1811.3,1811.2,4.58068126]
[1743797510490,6.9418,1811.3,1811.2,4.58068126]
[1743797510690,7.49460001,1811.3,1811.2,4.58068126]
[1743797511396,6.9418,1811.3,1811.2,4.58068126]
[1743797511589,7.49460001,1811.3,1811.2,3.24495]
[1743797511790,6.9418,1811.3,1811.2,4.58055974]
[1743797511996,7.49460001,1811.3,1811.2,4.58055974]
[1743797512197,7.49460001,1811.3,1811.2,5.2903326]
[1743797512389,6.9418,1811.3,1811.2,5.2903326]
[1743797512595,3.734,1811.3,1811.2,5.2903326]
[1743797513096,38.56560001,1811.5,1811.4,1.10453]
[1743797513294,42.29860001,1811.5,1811.4,2.44009293]
[1743797513692,43.80040001,1811.5,1811.4,2.44009293]
[1743797514299,42.29860001,1811.5,1811.4,2.44009293]
[1743797514497,42.29860001,1811.5,1811.4,3.17160189]
[1743797514693,35.35780001,1811.5,1811.4,3.17160189]
[1743797514996,34.805,1811.5,1811.4,3.17160189]
[1743797515592,34.805,1811.5,1811.4,3.88060067]
[1743797517292,34.805,1811.5,1811.4,3.17160189]
[1743797518101,34.805,1811.5,1811.4,3.88025193]
[1743797518899,34.805,1811.5,1811.4,3.17160189]
[1743797519900,38.0128,1811.5,1811.4,3.17160189]
[1743797520098,39.11727,1811.5,1811.4,1.64829002]
[1743797520301,42.12177,1811.5,1811.4,1.64829002]
[1743797521003,41.0173,1811.5,1811.4,1.64829002]
[1743797521499,41.0173,1811.5,1811.4,1.648282]
[1743797522797,41.0173,1811.5,1811.4,3.175082]
[1743797523296,41.0173,1811.5,1811.4,1.10453]
[1743797523597,41.0173,1811.5,1811.4,1.64831334]
[1743797525201,41.0173,1811.5,1811.4,1.64830183]
[1743797525497,41.0173,1811.5,1811.4,3.15980183]
[1743797526096,37.8095,1811.5,1811.4,3.15980183]
[1743797526300,41.0173,1811.5,1811.4,3.15980183]
[1743797526502,34.805,1811.5,1811.4,3.15980183]
[1743797526695,34.805,1811.5,1811.4,3.94924377]
[1743797527001,34.805,1811.5,1811.4,6.44924377]
[1743797527197,34.805,1811.5,1811.4,47.95723994]
[1743797528797,33.61381,1811.5,1811.4,47.95723994]
[1743797528996,32.2666,1811.5,1811.4,47.95723994]
[1743797529491,0.00826902,1811.7,1811.6,1.10441]
[1743797529691,0.00826902,1811.7,1811.6,2.43762377]
[1743797530102,0.00826902,1811.7,1811.6,4.60372377]
[1743797537605,2.23136902,1811.7,1811.6,4.60372377]
[1743797539510,0.00826902,1811.7,1811.6,4.60372377]
[1743797539902,0.00826902,1811.7,1811.6,3.27051]
[1743797540103,0.00826902,1811.7,1811.6,5.30892901]
[1743797541912,0.00826902,1811.7,1811.6,5.30901915]
[1743797542810,9.02e-06,1811.7,1811.6,5.30901915]
[1743797543501,9.02e-06,1811.7,1811.6,7.80901915]
[1743797543706,9.02e-06,1811.7,1811.6,7.80902474]
[1743797545713,9.02e-06,1811.7,1811.6,7.80850731]
[1743797547308,9.02e-06,1811.7,1811.6,5.30850731]
[1743797547708,9.02e-06,1811.7,1811.6,4.60115586]
[1743797547911,0.70020902,1811.7,1811.6,4.60115586]
[1743797548211,1.39800902,1811.7,1811.6,1.64712102]
[1743797548513,1.39800902,1811.7,1811.6,2.43484492]
[1743797548715,2.86230902,1811.7,1811.6,2.43484492]
[1743797549209,2.86230902,1811.7,1811.6,1.64712102]
[1743797549508,2.86230902,1811.7,1811.6,2.43485467]
[1743797549715,2.86230902,1811.7,1811.6,3.85615467]
[1743797550217,9.02e-06,1811.7,1811.6,3.85615467]
[1743797550417,2.23600902,1811.7,1811.6,3.85615467]
[1743797553016,2.23600902,1811.7,1811.6,3.8566387]
[1743797554112,2.23600902,1811.7,1811.6,4.56458212]
[1743797554616,2.23600902,1811.7,1811.6,2.4353387]
[1743797556614,2.23600902,1811.7,1811.6,3.14449414]
[1743797556815,2.23600902,1811.7,1811.6,3.14633613]
[1743797557422,9.02e-06,1811.7,1811.6,3.14633613]
[1743797557732,2.27430902,1811.7,1811.6,4.55503613]
[1743797558613,2.27430902,1811.7,1811.6,3.84770719]
[1743797562418,2.27430902,1811.7,1811.6,3.84767858]
[1743797565221,9.02e-06,1811.7,1811.6,3.84763055]
[1743797567020,1.48680902,1811.7,1811.6,3.84763055]
[1743797568120,1.48680902,1811.7,1811.6,2.43895196]
[1743797569915,1.48680902,1811.7,1811.6,2.43870695]
[1743797570121,1.48680902,1811.7,1811.6,3.86300695]
[1743797571127,1.48680902,1811.7,1811.6,2.43870695]
[1743797571822,1.48680902,1811.7,1811.6,2.43863929]
[1743797575627,1.48680902,1811.7,1811.6,2.43901282]
[1743797577328,1.48680902,1811.7,1811.6,1.10441]
[1743797577533,1.48680902,1811.7,1811.6,2.43952617]
[1743797579229,1.48680902,1811.7,1811.6,2.4395021]
[1743797579627,5.79895902,1811.7,1811.6,1.64894301]
[1743797579930,8.29895902,1811.7,1811.6,0.54453301]
[1743797580130,1.10447,1811.5,1811.4,1.10451]
[1743797580328,6.9318,1811.5,1811.4,1.649085]
[1743797580528,8.03627,1811.5,1811.4,1.649085]
[1743797580736,10.31117,1811.5,1811.4,1.649085]
[1743797580936,10.31117,1811.5,1811.4,1.64912948]
[1743797581736,11.7067,1811.5,1811.3,1.10454]
[1743797581935,1.1046,1811.3,1811.2,1.10462]
[1743797582133,3.2078,1811.3,1811.2,1.64889624]
[1743797582333,3.9206,1811.3,1811.2,1.64889624]
[1743797582534,5.3185,1811.3,1811.2,1.64889624]
[1743797582935,40.1185,1811.3,1811.2,1.64889624]
[1743797583134,41.22309,1811.3,1811.2,0.54427624]
[1743797583442,1.10465,1811.2,1811.1,1.10468]
[1743797583631,1.10465,1811.2,1811.1,1.64837477]
[1743797583632,5.8185,1811.2,1811.1,1.64837477]
[1743797588145,5.8185,1811.2,1811.1,1.64773666]
[1743797589743,5.8185,1811.2,1811.1,1.10468]
[1743797589943,5.8185,1811.2,1811.1,1.64757395]
[1743797591038,5.8185,1811.2,1811.0,2.56479902]
[1743797591244,5.73992,1811.1,1811.0,0.00826902]
[1743797592150,5.73992,1811.1,1811.0,1.11304902]
[1743797592445,4.6352,1811.1,1811.0,1.11304902]
[1743797592634,5.73992,1811.1,1811.0,1.11304902]
[1743797593338,4.6352,1811.1,1811.0,1.11304902]
[1743797593746,5.73992,1811.1,1811.0,1.11304902]
[1743797594143,4.6352,1811.1,1811.0,1.11304902]
[1743797594338,5.73992,1811.1,1811.0,1.11304902]
[1743797595036,5.73992,1811.1,1811.0,0.00826902]
[1743797595235,5.73992,1811.1,1811.0,1.11304902]
[1743797596545,5.73992,1811.1,1811.0,0.00826902]
[1743797596748,6.29272001,1811.1,1811.0,0.00826902]
[1743797597248,1.10484,1810.9,1810.8,1.4619]
[1743797597442,8.03564,1810.9,1810.8,2.0045566]
[1743797597646,8.03564,1810.9,1810.8,3.1094366]
[1743797598142,8.03564,1810.9,1810.8,0.5426566]
[1743797598345,2.76241,1810.7,1809.9,5.68988]
[1743797598549,3.2078,1810.2,1810.1,1.10533]
[1743797598751,6.9308,1810.2,1810.1,2.57549902]
[1743797599047,6.9308,1810.2,1810.1,0.00826902]
[1743797599248,8.03607,1810.2,1810.1,0.00826902]
[1743797599445,8.03607,1810.2,1810.1,1.47016902]
[1743797599850,9.56667,1810.2,1810.1,1.47016902]
[1743797600048,10.26527,1810.2,1810.1,0.00826902]
[1743797600644,9.16,1810.2,1810.1,0.00826902]
[1743797601040,10.26527,1810.2,1810.1,1.45026902]
[1743797603755,9.16,1810.2,1810.1,1.45026902]
[1743797603949,10.26527,1810.2,1810.1,1.45026902]
[1743797604649,9.16,1810.2,1810.1,1.45026902]
[1743797604853,10.26527,1810.2,1810.1,1.45026902]
[1743797606154,10.26527,1810.2,1810.1,0.00826902]
[1743797609948,9.161,1810.2,1809.9,1.10545]
[1743797610153,1.10527,1810.2,1810.1,0.7684]
[1743797610345,1.10533,1810.1,1810.0,2.1224]
[1743797610546,9.43581,1810.2,1810.0,3.22777]
[1743797610753,9.43581,1810.2,1810.1,1.3906]
[1743797612758,1.10533,1810.1,1810.0,0.7318]
[1743797613054,2.58153,1810.1,1810.0,0.7318]
[1743797613255,2.58153,1810.1,1810.0,2.1593]
[1743797613657,1.10543,1810.0,1809.8,1.8739]
[1743797613959,1.80763,1810.0,1809.9,1.4275]
[1743797614151,8.73943,1810.0,1809.9,1.4275]
[1743797614855,1.10545,1809.9,1809.8,0.7684]
[1743797615056,8.3637,1810.0,1809.8,0.7684]
[1743797615257,9.46911,1810.0,1809.8,1.87388]
[1743797615558,9.46911,1810.0,1809.9,1.4797]
[1743797616155,9.46911,1810.0,1809.9,2.2094]
[1743797616855,8.03719,1810.0,1809.9,2.2094]
[1743797617057,8.76509,1810.0,1809.9,2.2094]
[1743797617352,7.6597,1810.0,1809.9,2.2094]
[1743797617556,8.76509,1810.0,1809.9,2.2094]
[1743797621458,8.03719,1810.0,1809.9,2.2094]
[1743797622561,6.9318,1810.0,1809.9,3.31485]
[1743797622754,8.03719,1810.0,1809.9,2.2094]
[1743797623462,8.03719,1810.0,1809.9,2.73599988]
[1743797623860,8.03719,1810.0,1809.9,2.2094]
[1743797624060,8.03719,1810.0,1809.9,2.73604034]
[1743797624249,8.03719,1810.0,1809.9,2.73603881]
[1743797624864,8.03719,1810.0,1809.9,3.84148881]
[1743797625062,8.03719,1810.0,1809.9,2.73603881]
[1743797625359,8.03719,1810.0,1809.9,2.73634558]
[1743797625758,6.9318,1810.0,1809.5,2.76424]
[1743797626061,3.2078,1809.9,1809.8,1.10551]
[1743797626261,3.2078,1809.9,1809.8,2.42155857]
[1743797626661,3.2078,1809.9,1809.8,3.12255367]
[1743797626965,3.2078,1809.9,1809.8,3.12373729]
[1743797627264,4.31325,1809.9,1809.8,2.01822729]
[1743797627465,5.05545,1809.9,1809.8,3.12373729]
[1743797627661,3.95,1809.9,1809.8,3.12373729]
[1743797628769,3.95,1809.9,1809.8,2.33433484]
[1743797628963,3.2078,1809.9,1809.8,3.12554439]
[1743797631470,3.723,1810.0,1809.9,1.10545]
[1743797631670,3.2078,1810.1,1810.0,1.10539]
[1743797631968,6.9298,1810.1,1810.0,3.12542439]
[1743797632368,3.722,1810.4,1810.1,2.76325]
[1743797632565,3.722,1810.4,1810.3,1.1052]
[1743797632764,3.722,1810.4,1810.3,2.42524302]
[1743797633069,4.82714,1810.4,1810.3,1.32004302]
[1743797633367,4.82714,1810.4,1810.3,2.42524302]
[1743797634469,3.722,1810.4,1810.3,2.42100462]
[1743797636483,4.82714,1810.4,1810.3,1.31580462]
[1743797636781,3.722,1810.4,1810.3,2.42100462]
[1743797636967,4.82714,1810.4,1810.3,2.42100462]
[1743797637375,3.722,1810.4,1810.3,2.42016829]
[1743797638472,3.722,1810.4,1810.3,1.63386492]
[1743797638674,6.49857902,1810.5,1810.4,1.10514]
[1743797638675,0.00826902,1810.5,1810.4,1.10514]
[1743797638873,0.00826902,1810.5,1810.4,2.41997594]
[1743797639579,0.00826902,1810.5,1810.4,3.12082213]
[1743797640082,3.21606902,1810.5,1810.4,3.12082213]
[1743797640377,5.04014902,1810.5,1810.4,2.33465111]
[1743797640576,7.29884902,1810.5,1810.4,0.52866492]
[1743797641175,6.19376902,1810.5,1810.4,1.63380492]
[1743797643179,7.29887902,1810.5,1810.3,2.55868]
[1743797643479,5.1194,1810.4,1810.3,2.55868]
[1743797643682,5.1194,1810.4,1810.3,3.08627284]
[1743797643880,6.22454,1810.4,1810.3,0.52759284]
[1743797644584,5.1194,1810.4,1810.3,1.63279284]
[1743797644982,5.1194,1810.4,1810.3,1.6327876]
[1743797645682,5.1194,1810.4,1810.3,1.63279995]
[1743797646472,3.721,1810.4,1810.3,2.38039995]
[1743797646676,3.721,1810.4,1810.3,3.08569995]
[1743797646874,5.1516,1810.4,1810.3,3.08569995]
[1743797647483,3.721,1810.4,1810.3,3.08569995]
[1743797648582,3.721,1810.4,1810.3,3.87121141]
[1743797649088,3.721,1810.4,1810.3,5.27221141]
[1743797649488,3.72826902,1810.5,1810.4,1.10514]
[1743797649788,3.72826902,1810.5,1810.4,3.81925141]
[1743797650485,3.72826902,1810.5,1810.4,3.81908691]
[1743797652287,3.72826902,1810.5,1810.4,3.81875497]
[1743797652488,8.04114902,1810.5,1810.4,3.03351888]
[1743797652689,6.93606902,1810.5,1810.4,3.03351888]
[1743797653085,8.41466902,1810.5,1810.4,3.03351888]
[1743797653486,5.20686902,1810.5,1810.4,3.03351888]
[1743797653691,8.41466902,1810.5,1810.4,3.03351888]
[1743797654091,3.72826902,1810.5,1810.4,3.03351888]
[1743797654390,3.72826902,1810.5,1810.4,3.81881875]
[1743797655292,6.93606902,1810.5,1810.4,3.81881875]
[1743797655493,6.93606902,1810.5,1810.4,3.03351888]
[1743797655696,3.72826902,1810.5,1810.4,3.81893351]
[1743797656088,3.72826902,1810.5,1810.4,3.81903425]
[1743797656296,3.72826902,1810.5,1810.4,3.81913906]
[1743797656592,5.26186902,1810.5,1810.4,3.81914753]
[1743797657992,3.72826902,1810.5,1810.4,3.81934662]
[1743797658193,0.00826902,1810.5,1810.4,3.81934662]
[1743797658494,0.00826902,1810.5,1810.4,4.52030391]
[1743797661694,0.00826902,1810.5,1810.4,4.52115508]
[1743797662402,0.00826902,1810.5,1810.4,7.72895508]
[1743797663397,0.00826902,1810.5,1810.4,6.94258785]
[1743797663602,0.00826902,1810.5,1810.4,7.72927445]
[1743797663802,9.02e-06,1810.5,1810.4,10.22927445]
[1743797665303,9.02e-06,1810.5,1810.4,10.22887229]
[1743797665508,9.02e-06,1810.5,1810.4,51.02887229]
[1743797669109,9.02e-06,1810.5,1810.4,51.02829504]
[1743797672711,9.02e-06,1810.5,1810.4,51.02758838]
[1743797674617,9.02e-06,1810.5,1810.4,51.02752549]
[1743797678415,9.02e-06,1810.5,1810.4,51.02820699]
[1743797680220,9.02e-06,1810.5,1810.4,51.0285373]
[1743797682113,9.02e-06,1810.5,1810.4,51.02858876]
[1743797683315,5.2212,1810.9,1810.4,51.02858876]
[1743797683316,1.5052,1810.9,1810.8,1.1049]
[1743797683515,1.5052,1810.9,1810.8,5.62639147]
[1743797683516,0.7429,1810.9,1810.8,5.62639147]
[1743797683717,0.7429,1810.9,1810.8,6.32734876]
[1743797684121,0.7429,1810.9,1810.8,47.12734876]
[1743797684813,0.7429,1810.9,1810.8,43.91954876]
[1743797685021,2.9412,1810.9,1810.8,43.91954876]
[1743797685524,2.9412,1810.9,1810.8,43.91978706]
[1743797685924,2.9412,1810.9,1810.8,43.919801]
[1743797687824,2.9412,1810.9,1810.8,43.92017362]
[1743797689426,2.9412,1810.9,1810.8,3.12017362]
[1743797689619,2.9412,1810.9,1810.8,3.12044659]
[1743797689820,2.9412,1810.9,1810.8,43.92044659]
[1743797690422,2.9412,1810.9,1810.8,3.12044659]
[1743797690625,2.9412,1810.9,1810.8,3.1205419]
[1743797691027,2.9412,1810.9,1810.8,43.9205419]
[1743797694620,2.9412,1810.9,1810.8,47.1283419]
[1743797694832,2.1874,1810.9,1810.8,48.6413419]
[1743797695023,2.8818,1810.9,1810.8,43.9205419]
[1743797695223,2.8818,1810.9,1810.8,43.92090362]
[1743797696131,2.8818,1810.9,1810.8,43.21994633]
[1743797696524,2.8818,1810.9,1810.8,45.46674633]
[1743797696723,2.8818,1810.9,1810.8,46.18674633]
[1743797697025,2.8818,1810.9,1810.8,44.8717]
[1743797697231,2.8818,1810.9,1810.8,46.18671818]
[1743797697433,2.1874,1810.9,1810.8,46.18671818]
[1743797697632,0.00826902,1811.0,1810.9,1.10484]
[1743797697833,0.00826902,1811.0,1810.9,3.87965818]
[1743797700928,0.00826902,1811.0,1810.9,3.87861601]
[1743797701430,0.00826902,1811.0,1810.9,2.41881601]
[1743797701927,1.44666902,1811.0,1810.9,2.41881601]
[1743797702128,9.47224902,1811.0,1810.9,1.63275178]
[1743797703831,9.47224902,1811.0,1810.9,1.10484]
[1743797704032,11.97224902,1811.0,1810.9,0.5281636]
[1743797704236,2.76215,1810.9,1810.4,2.76285]
[1743797704536,3.2078,1810.6,1810.5,1.10503]
[1743797704746,8.02582,1810.6,1810.5,1.10503]
[1743797705235,6.9208,1810.6,1810.5,1.10503]
[1743797706135,9.8857,1810.6,1810.5,1.10503]
[1743797707240,10.99072,1810.6,1810.5,1.10503]
[1743797707427,9.8857,1810.6,1810.5,1.10503]
[1743797708431,6.6779,1810.6,1810.5,1.10503]
[1743797708637,2.9649,1810.6,1810.5,1.10503]
[1743797708938,2.9649,1810.6,1810.5,1.89023208]
[1743797709438,2.9649,1810.6,1810.5,1.10503]
[1743797710131,6.1727,1810.6,1810.5,1.10503]
[1743797710336,7.27772,1810.6,1810.5,1.10503]
[1743797710537,6.1727,1810.6,1810.5,1.10503]
[1743797711443,7.27772,1810.6,1810.5,1.10503]
[1743797711742,6.1727,1810.6,1810.5,1.10503]
[1743797711943,7.27772,1810.6,1810.5,1.10503]
[1743797712246,9.77772,1810.6,1810.5,1.10503]
[1743797712541,10.33052001,1810.6,1810.5,1.10503]
[1743797712937,9.22550001,1810.6,1810.3,0.00826]
[1743797713143,1.4709,1810.5,1810.4,1.10514]
[1743797713741,2.57598,1810.5,1810.4,1.10514]
[1743797714144,3.9709,1810.5,1810.3,0.00826]
[1743797714344,5.1839,1810.4,1810.3,1.11346]
[1743797716540,1.4709,1810.4,1810.3,1.11346]
[1743797716844,3.713,1810.7,1810.3,4.18175]
[1743797717039,3.713,1810.7,1810.6,1.10502]
[1743797717844,3.2078,1810.8,1810.7,1.10496]
[1743797718045,3.713,1810.9,1810.8,1.1049]
[1743797718451,3.713,1810.9,1810.8,2.607]
[1743797719350,1.47966902,1811.0,1810.9,1.10484]
[1743797719538,3.72126902,1811.0,1810.9,2.53084]
[1743797720049,0.00826902,1811.0,1810.9,3.31509993]
[1743797720539,0.00826902,1811.0,1810.9,2.53084]
[1743797721235,0.00826902,1811.0,1810.9,3.31488939]
[1743797721548,9.02e-06,1811.0,1810.9,3.31487367]
[1743797721844,9.02e-06,1811.0,1810.9,3.31483871]
[1743797722046,9.02e-06,1811.0,1810.9,5.81483735]
[1743797722242,9.02e-06,1811.0,1810.9,5.81477697]
[1743797722449,9.02e-06,1811.0,1810.9,5.81475894]
[1743797722843,9.02e-06,1811.0,1810.9,5.81436717]
[1743797723041,9.02e-06,1811.0,1810.9,5.81436904]
[1743797723241,9.02e-06,1811.0,1810.9,5.81432123]
[1743797723446,9.02e-06,1811.0,1810.9,46.6143334]
[1743797723646,9.02e-06,1811.0,1810.9,46.61439737]
[1743797723948,9.02e-06,1811.0,1810.9,46.61440486]
[1743797725350,9.02e-06,1811.0,1810.9,46.61411976]
[1743797729150,9.02e-06,1811.0,1810.9,46.61345586]
[1743797732650,9.02e-06,1811.0,1810.9,45.83084]
[1743797732859,9.02e-06,1811.0,1810.9,46.61276799]
[1743797733850,9.02e-06,1811.0,1810.9,46.61259869]
[1743797737151,9.02e-06,1811.0,1810.9,46.61254866]
[1743797737846,9.02e-06,1811.0,1810.9,44.11254866]
[1743797741457,9.02e-06,1811.0,1810.9,46.61254866]
[1743797744558,9.02e-06,1811.0,1810.9,46.61449295]
[1743797745456,9.02e-06,1811.0,1810.9,45.83084]
[1743797745862,9.02e-06,1811.0,1810.9,46.61516686]
[1743797746362,9.02e-06,1811.0,1810.9,46.61516096]
[1743797746756,9.02e-06,1811.0,1810.9,50.32316096]
[1743797747163,9.02e-06,1811.0,1810.9,49.53884]
[1743797747662,9.02e-06,1811.0,1810.9,50.32462748]
[1743797748161,9.02e-06,1811.0,1810.9,49.53884]
[1743797748854,1.4543,1811.3,1811.0,2.76181]
[1743797749058,6.9158,1811.6,1811.5,1.10447]
[1743797749260,6.9158,1811.6,1811.5,1.89064241]
[1743797749865,3.708,1811.6,1811.5,1.89064241]
[1743797750265,4.81241,1811.6,1811.5,1.89064241]
[1743797750763,3.708,1811.6,1811.5,2.60546703]
[1743797751758,4.81241,1811.6,1811.5,2.60546703]
[1743797751958,3.708,1811.6,1811.5,2.60546703]
[1743797752269,6.6493,1811.6,1811.5,2.60546703]
[1743797752564,6.6493,1811.6,1811.5,2.60607115]
[1743797752966,2.9413,1811.6,1811.5,2.60607115]
[1743797754369,2.9413,1811.6,1811.5,2.60593395]
[1743797755272,2.9413,1811.6,1811.5,5.81373395]
[1743797756073,2.9413,1811.6,1811.5,7.25425951]
[1743797756773,0.00826902,1811.7,1811.6,1.10441]
[1743797756961,0.00826902,1811.7,1811.6,4.79139951]
[1743797757266,36.2374,1811.9,1811.8,1.10429]
[1743797757564,1.4304,1811.9,1811.8,1.89065489]
[1743797757965,1.4304,1811.9,1811.8,4.04627951]
[1743797758161,1.4304,1811.9,1811.8,4.04554763]
[1743797758667,0.00826902,1812.0,1811.9,1.10423]
[1743797758966,0.00826902,1812.0,1811.9,2.65586301]
[1743797759273,0.00826902,1812.0,1811.9,3.37068763]
[1743797759954,0.76156902,1812.0,1811.9,3.37068763]
[1743797760571,2.25406902,1812.0,1811.9,3.37068763]
[1743797760865,2.25406902,1812.0,1811.9,3.36980075]
[1743797761759,2.25406902,1812.0,1811.9,2.60380075]
[1743797764560,2.25406902,1812.0,1811.9,1.10423]
[1743797764760,5.85823902,1812.0,1811.9,1.10423]
[1743797765062,1.10429,1811.9,1811.8,1.10423]
[1743797765262,6.24459,1811.9,1811.8,1.10423]
[1743797765463,8.74459,1811.9,1811.8,1.10423]
[1743797768373,1.10445,1811.6,1811.5,1.10442]
[1743797768577,4.80945,1811.6,1811.5,1.10442]
[1743797768870,7.30945,1811.6,1811.5,1.10442]
[1743797769073,9.0463,1811.6,1811.5,1.10442]
[1743797769375,6.5463,1811.6,1811.5,1.10442]
[1743797771276,5.0996,1811.6,1811.5,2.57982]
[1743797771574,5.0996,1811.6,1811.5,1.10442]
[1743797773476,1.10447,1811.5,1811.4,0.00826902]
[1743797773772,5.79847,1811.5,1811.4,0.00826902]
[1743797773978,8.29847,1811.5,1811.4,0.00826902]
[1743797777179,8.85127001,1811.5,1811.4,0.00826902]
[1743797778379,2.76136,1811.4,1811.0,1.10472]
[1743797778580,1.10472,1811.1,1811.0,1.10472]
[1743797779181,3.28972,1811.1,1811.0,1.10472]
[1743797779582,5.78972,1811.1,1811.0,1.10472]
[1743797779780,1.10478,1811.0,1810.9,1.11306902]